[Event "The Schackveckan 2023: IM-turnering"]
[Site "Goteborgs schackcentrum, Vegagatan 20, Gothenburg, Sweden"]
[Date "2023.08.08"]
[Round "6.3"]
[White "Kistrup, Nicolai"]
[Black "Olsson, William"]
[Result "0-1"]
[TimeControl "90 minutes for 40 moves + 30 minutes for the rest of the game + 30 seconds per move from move one."]
[WhiteTitle "FM"]
[BlackTitle "FM"]
[WhiteFideId "1444816"]
[BlackFideId "1741721"]
[WhiteElo "2339"]
[BlackElo "2400"]

1. d4 {[%clk 01:30:57]} {[%emt 00:00:02]} d5 {[%clk 01:28:04]} {[%emt
00:02:57]} 2. c4 {[%clk 01:31:18]} {[%emt 00:00:09]} c6 {[%clk 01:28:27]}
{[%emt 00:00:07]} 3. Nf3 {[%clk 01:31:43]} {[%emt 00:00:05]} e6 {[%clk
01:28:53]} {[%emt 00:00:04]} 4. g3 {[%clk 01:31:54]} {[%emt 00:00:19]} dxc4
{[%clk 01:29:16]} {[%emt 00:00:08]} 5. Bg2 {[%clk 01:32:18]} {[%emt 00:00:04]}
b5 {[%clk 01:29:44]} {[%emt 00:00:04]} 6. a4 {[%clk 01:30:40]} {[%emt
00:02:06]} Bb7 {[%clk 01:29:57]} {[%emt 00:00:18]} 7. Ne5 {[%clk 01:29:24]}
{[%emt 00:01:46]} Qc8 {[%clk 01:30:15]} {[%emt 00:00:12]} 8. O-O {[%clk
01:18:52]} {[%emt 00:11:02]} Nd7 {[%clk 01:29:47]} {[%emt 00:00:58]} 9. b3
{[%clk 01:16:00]} {[%emt 00:03:22]} cxb3 {[%clk 01:29:03]} {[%emt 00:01:14]} 10.
Qxb3 {[%clk 01:12:25]} {[%emt 00:04:05]} b4 {[%clk 01:28:33]} {[%emt 00:01:00]}
11. Bf4 {[%clk 01:01:19]} {[%emt 00:11:35]} Ngf6 {[%clk 01:15:35]} {[%emt
00:13:27]} 12. Nd2 {[%clk 00:47:34]} {[%emt 00:14:16]} c5 {[%clk 01:08:00]}
{[%emt 00:08:06]} 13. Rac1 {[%clk 00:37:57]} {[%emt 00:10:07]} Bxg2 {[%clk
01:07:29]} {[%emt 00:01:01]} 14. Kxg2 {[%clk 00:38:16]} {[%emt 00:00:10]} Qb7+
{[%clk 01:07:52]} {[%emt 00:00:08]} 15. f3 {[%clk 00:32:23]} {[%emt 00:06:23]}
Nd5 {[%clk 00:37:54]} {[%emt 00:30:28]} 16. Rc4 {[%clk 00:08:03]} {[%emt
00:24:50]} cxd4 {[%clk 00:32:14]} {[%emt 00:06:10]} 17. Rxd4 {[%clk 00:05:55]}
{[%emt 00:02:39]} Nc5 {[%clk 00:24:27]} {[%emt 00:08:16]} 18. Qc4 {[%clk
00:04:11]} {[%emt 00:02:13]} Be7 {[%clk 00:24:28]} {[%emt 00:00:30]} 19. e4
{[%clk 00:01:22]} {[%emt 00:03:19]} Nxf4+ {[%clk 00:23:00]} {[%emt 00:01:58]}
20. gxf4 {[%clk 00:01:48]} {[%emt 00:00:04]} a5 {[%clk 00:22:44]} {[%emt
00:00:46]} 21. f5 {[%clk 00:01:29]} {[%emt 00:00:48]} Rc8 {[%clk 00:22:11]}
{[%emt 00:01:04]} 22. Qb5+ {[%clk 00:00:49]} {[%emt 00:01:10]} Qxb5 {[%clk
00:22:19]} {[%emt 00:00:22]} 23. axb5 {[%clk 00:01:14]} {[%emt 00:00:04]} Bf6
{[%clk 00:21:49]} {[%emt 00:01:01]} 24. f4 {[%clk 00:01:07]} {[%emt 00:00:36]}
O-O {[%clk 00:21:36]} {[%emt 00:00:44]} 25. Rc1 {[%clk 00:01:06]} {[%emt
00:00:31]} Nb7 {[%clk 00:18:21]} {[%emt 00:03:46]} 26. Rxc8 {[%clk 00:00:45]}
{[%emt 00:00:50]} Rxc8 {[%clk 00:18:45]} {[%emt 00:00:06]} 27. Rd7 {[%clk
00:00:50]} {[%emt 00:00:25]} Nc5 {[%clk 00:18:50]} {[%emt 00:00:25]} 28. Ra7
{[%clk 00:01:02]} {[%emt 00:00:18]} Bxe5 {[%clk 00:17:35]} {[%emt 00:01:45]} 29.
fxe5 {[%clk 00:01:27]} {[%emt 00:00:05]} h6 {[%clk 00:09:09]} {[%emt 00:08:56]}
30. Rxa5 {[%clk 00:00:54]} {[%emt 00:01:03]} Nb7 {[%clk 00:09:26]} {[%emt
00:00:12]} 31. Ra7 {[%clk 00:00:51]} {[%emt 00:00:33]} Rc2 {[%clk 00:09:51]}
{[%emt 00:00:06]} 32. Rxb7 {[%clk 00:00:56]} {[%emt 00:00:25]} Rxd2+ {[%clk
00:10:15]} {[%emt 00:00:05]} 33. Kf3 {[%clk 00:01:11]} {[%emt 00:00:16]} b3
{[%clk 00:10:34]} {[%emt 00:00:11]} 34. Rb8+ {[%clk 00:00:39]} {[%emt
00:01:01]} Kh7 {[%clk 00:10:59]} {[%emt 00:00:05]} 35. Ke3 {[%clk 00:00:48]}
{[%emt 00:00:22]} Rd1 {[%clk 00:10:49]} {[%emt 00:00:41]} 36. Ke2 {[%clk
00:00:53]} {[%emt 00:00:25]} Rc1 {[%clk 00:10:58]} {[%emt 00:00:21]} 0-1

[Event "The Schackveckan 2023: IM-turnering"]
[Site "Goteborgs schackcentrum, Vegagatan 20, Gothenburg, Sweden"]
[Date "2023.08.08"]
[Round "6.4"]
[White "Hector, Jonny"]
[Black "Brattgjerd, Isak Vinh"]
[Result "1-0"]
[TimeControl "90 minutes for 40 moves + 30 minutes for the rest of the game + 30 seconds per move from move one."]
[WhiteTitle "GM"]
[WhiteFideId "1700090"]
[BlackFideId "1549880"]
[WhiteElo "2466"]
[BlackElo "2214"]

1. e4 {[%clk 01:30:54]} {[%emt 00:00:04]} c6 {[%clk 01:30:58]} {[%emt
00:00:04]} 2. d4 {[%clk 01:31:10]} {[%emt 00:00:13]} d5 {[%clk 01:31:26]}
{[%emt 00:00:02]} 3. Nd2 {[%clk 01:31:23]} {[%emt 00:00:16]} dxe4 {[%clk
01:31:53]} {[%emt 00:00:05]} 4. Nxe4 {[%clk 01:31:44]} {[%emt 00:00:08]} Nf6
{[%clk 01:32:13]} {[%emt 00:00:10]} 5. Nxf6+ {[%clk 01:31:56]} {[%emt
00:00:17]} exf6 {[%clk 01:32:38]} {[%emt 00:00:06]} 6. Be3 {[%clk 01:32:08]}
{[%emt 00:00:18]} Bd6 {[%clk 01:32:50]} {[%emt 00:00:18]} 7. Bd3 {[%clk
01:32:23]} {[%emt 00:00:13]} O-O {[%clk 01:32:49]} {[%emt 00:00:32]} 8. Ne2
{[%emt 00:01:14]} Re8 {[%clk 01:31:58]} {[%emt 00:00:32]} 9. O-O {[%clk
01:31:46]} {[%emt 00:01:12]} Nd7 {[%clk 01:29:30]} {[%emt 00:02:59]} 10. c4
{[%clk 01:31:05]} {[%emt 00:01:11]} Nf8 {[%clk 01:19:50]} {[%emt 00:10:11]} 11.
Qc2 {[%clk 01:28:47]} {[%emt 00:02:46]} g6 {[%clk 01:15:48]} {[%emt 00:04:34]}
12. Rad1 {[%clk 01:26:43]} {[%emt 00:02:33]} Qc7 {[%clk 01:14:30]} {[%emt
00:01:49]} 13. h3 {[%clk 01:20:55]} {[%emt 00:06:16]} Ne6 {[%clk 01:13:04]}
{[%emt 00:01:58]} 14. Qc1 {[%clk 01:12:47]} {[%emt 00:08:37]} f5 {[%clk
01:07:13]} {[%emt 00:06:22]} 15. c5 {[%clk 00:56:51]} {[%emt 00:16:26]} Bf8
{[%clk 01:03:09]} {[%emt 00:04:33]} 16. Bc4 {[%clk 00:54:01]} {[%emt 00:03:21]}
Bg7 {[%clk 00:53:42]} {[%emt 00:09:58]} 17. b4 {[%clk 00:48:24]} {[%emt
00:06:06]} Bd7 {[%clk 00:51:35]} {[%emt 00:02:37]} 18. a4 {[%clk 00:42:51]}
{[%emt 00:06:04]} a6 {[%clk 00:50:56]} {[%emt 00:01:09]} 19. Qa3 {[%clk
00:37:28]} {[%emt 00:05:52]} Rad8 {[%clk 00:48:37]} {[%emt 00:02:48]} 20. Qb3
{[%clk 00:36:23]} {[%emt 00:01:36]} Bc8 {[%clk 00:45:34]} {[%emt 00:03:33]} 21.
g3 {[%clk 00:33:47]} {[%emt 00:03:05]} f4 {[%clk 00:41:48]} {[%emt 00:04:17]}
22. gxf4 {[%clk 00:31:47]} {[%emt 00:02:29]} Nf8 {[%clk 00:35:28]} {[%emt
00:06:51]} 23. Kg2 {[%clk 00:25:26]} {[%emt 00:06:51]} Be6 {[%clk 00:32:09]}
{[%emt 00:03:50]} 24. b5 {[%clk 00:21:19]} {[%emt 00:04:36]} axb5 {[%clk
00:31:03]} {[%emt 00:01:36]} 25. axb5 {[%clk 00:21:42]} {[%emt 00:00:07]} Qd7
{[%clk 00:25:40]} {[%emt 00:05:53]} 26. Kh2 {[%clk 00:18:37]} {[%emt 00:03:34]}
Bxc4 {[%clk 00:17:01]} {[%emt 00:09:10]} 27. Qxc4 {[%clk 00:18:47]} {[%emt
00:00:19]} Ne6 {[%clk 00:16:45]} {[%emt 00:00:47]} 28. Qb3 {[%clk 00:16:51]}
{[%emt 00:02:26]} Nc7 {[%clk 00:16:47]} {[%emt 00:00:28]} 29. Nc3 {[%clk
00:13:38]} {[%emt 00:03:42]} Bh6 {[%clk 00:12:53]} {[%emt 00:04:25]} 30. b6
{[%clk 00:11:45]} {[%emt 00:02:23]} Nd5 {[%clk 00:13:01]} {[%emt 00:00:23]} 31.
Nxd5 {[%clk 00:11:32]} {[%emt 00:00:42]} cxd5 {[%clk 00:12:43]} {[%emt
00:00:49]} 32. f5 {[%clk 00:10:07]} {[%emt 00:01:55]} Bg7 {[%clk 00:11:13]}
{[%emt 00:02:00]} 33. fxg6 {[%clk 00:09:00]} {[%emt 00:01:35]} hxg6 {[%clk
00:11:15]} {[%emt 00:00:29]} 34. Rg1 {[%clk 00:07:50]} {[%emt 00:01:40]} Re4
{[%clk 00:08:21]} {[%emt 00:03:25]} 35. f3 {[%clk 00:05:16]} {[%emt 00:03:04]}
Re6 {[%clk 00:08:21]} {[%emt 00:00:29]} 36. Rg2 {[%clk 00:04:37]} {[%emt
00:01:08]} Rde8 {[%clk 00:07:40]} {[%emt 00:01:12]} 37. Bf4 {[%clk 00:04:26]}
{[%emt 00:00:41]} Re2 {[%clk 00:06:05]} {[%emt 00:02:05]} 38. Qd3 {[%clk
00:04:30]} {[%emt 00:00:26]} Rxg2+ {[%clk 00:04:40]} {[%emt 00:01:56]} 39. Kxg2
{[%clk 00:04:56]} {[%emt 00:00:02]} Qa4 {[%clk 00:04:11]} {[%emt 00:01:00]} 40.
Rd2 {[%clk 00:04:22]} {[%emt 00:01:03]} Re1 {[%clk 00:02:49]} {[%emt 00:01:52]}
41. Bg3 {[%clk 00:28:43]} {[%emt 00:06:09]} Rc1 {[%clk 00:31:39]} {[%emt
00:01:41]} 42. Bf2 {[%clk 00:26:59]} {[%emt 00:02:14]} Qa1 {[%clk 00:23:10]}
{[%emt 00:08:59]} 43. Qe2 {[%clk 00:25:30]} {[%emt 00:01:58]} Kh7 {[%clk
00:15:12]} {[%emt 00:08:29]} 44. Rc2 {[%clk 00:19:39]} {[%emt 00:06:21]} Rb1
{[%clk 00:13:41]} {[%emt 00:02:01]} 45. Rd2 {[%clk 00:16:16]} {[%emt 00:03:53]}
Rc1 {[%clk 00:12:10]} {[%emt 00:02:01]} 46. Rb2 {[%clk 00:12:59]} {[%emt
00:03:47]} Rc4 {[%clk 00:10:47]} {[%emt 00:01:53]} 47. Rc2 {[%clk 00:06:35]}
{[%emt 00:06:53]} Rb4 {[%clk 00:08:33]} {[%emt 00:02:45]} 48. Ra2 {[%clk
00:05:38]} {[%emt 00:01:27]} Qc1 {[%clk 00:07:37]} {[%emt 00:01:26]} 49. Qd2
{[%clk 00:05:34]} {[%emt 00:00:34]} Qc4 {[%clk 00:07:27]} {[%emt 00:00:40]} 50.
Rb2 {[%clk 00:05:08]} {[%emt 00:00:56]} Ra4 {[%clk 00:07:17]} {[%emt 00:00:40]}
51. Qc2 {[%clk 00:04:06]} {[%emt 00:01:31]} Qa6 {[%clk 00:07:26]} {[%emt
00:00:22]} 52. Qe2 {[%clk 00:04:06]} {[%emt 00:00:30]} Qa8 {[%clk 00:03:43]}
{[%emt 00:04:13]} 53. c6 {[%clk 00:03:39]} {[%emt 00:00:58]} Qc8 {[%clk
00:02:38]} {[%emt 00:01:34]} 54. c7 {[%clk 00:03:07]} {[%emt 00:01:02]} Qf5
{[%clk 00:02:17]} {[%emt 00:00:52]} 55. Rc2 {[%clk 00:02:52]} {[%emt 00:00:45]}
Ra8 {[%clk 00:02:27]} {[%emt 00:00:18]} 56. h4 {[%clk 00:02:48]} {[%emt
00:00:35]} g5 {[%clk 00:02:15]} {[%emt 00:00:43]} 57. hxg5 {[%clk 00:02:22]}
{[%emt 00:00:55]} Bf8 {[%clk 00:00:46]} {[%emt 00:01:59]} 58. Bg3 {[%clk
00:01:43]} {[%emt 00:01:08]} Rc8 {[%clk 00:00:44]} {[%emt 00:00:34]} 59. Rc1
{[%clk 00:01:50]} {[%emt 00:00:23]} Qxg5 {[%clk 00:00:41]} {[%emt 00:00:33]} 60.
Rh1+ {[%clk 00:01:41]} {[%emt 00:00:38]} Kg8 {[%clk 00:01:07]} {[%emt
00:00:04]} 61. Qe5 {[%clk 00:01:18]} {[%emt 00:00:53]} Qd2+ {[%clk 00:01:09]}
{[%emt 00:00:27]} 62. Bf2 {[%clk 00:01:45]} {[%emt 00:00:03]} Bh6 {[%clk
00:00:55]} {[%emt 00:00:45]} 63. Qf5 {[%clk 00:01:40]} {[%emt 00:00:35]} Qg5+
{[%clk 00:00:53]} {[%emt 00:00:32]} 64. Qxg5+ {[%clk 00:01:37]} {[%emt
00:00:32]} Bxg5 {[%clk 00:01:20]} {[%emt 00:00:04]} 65. Rh5 {[%clk 00:01:29]}
{[%emt 00:00:38]} Bf6 {[%clk 00:01:11]} {[%emt 00:00:39]} 66. Rxd5 {[%clk
00:01:22]} {[%emt 00:00:36]} Kf8 {[%clk 00:01:38]} {[%emt 00:00:04]} 67. f4
{[%clk 00:01:09]} {[%emt 00:00:43]} Ke7 {[%clk 00:00:40]} {[%emt 00:01:29]} 68.
Kf3 {[%clk 00:01:34]} {[%emt 00:00:05]} Ke6 {[%clk 00:00:32]} {[%emt 00:00:38]}
69. Ke4 {[%clk 00:01:58]} {[%emt 00:00:04]} Ke7 {[%clk 00:00:59]} {[%emt
00:00:04]} 70. Kf5 {[%clk 00:01:25]} {[%emt 00:01:03]} Rh8 {[%clk 00:00:58]}
{[%emt 00:00:31]} 71. Rd8 {[%clk 00:01:18]} {[%emt 00:00:36]} 1-0

[Event "The Schackveckan 2023: IM-turnering"]
[Site "Goteborgs schackcentrum, Vegagatan 20, Gothenburg, Sweden"]
[Date "2023.08.08"]
[Round "6.5"]
[White "Berggren Torell, Harald"]
[Black "Karlsson, Stefan"]
[Result "1-0"]
[TimeControl "90 minutes for 40 moves + 30 minutes for the rest of the game + 30 seconds per move from move one."]
[WhiteFideId "1714031"]
[BlackFideId "1771183"]
[WhiteElo "2061"]
[BlackElo "1925"]

1. Nf3 {[%clk 01:30:57]} {[%emt 00:00:02]} Nf6 {[%clk 01:28:31]} {[%emt
00:02:24]} 2. g3 {[%clk 01:30:31]} {[%emt 00:01:02]} g6 {[%clk 01:28:20]}
{[%emt 00:00:41]} 3. Bg2 {[%clk 01:30:55]} {[%emt 00:00:05]} Bg7 {[%clk
01:28:41]} {[%emt 00:00:08]} 4. c4 {[%clk 01:30:41]} {[%emt 00:00:45]} d6
{[%clk 01:28:59]} {[%emt 00:00:12]} 5. O-O {[%clk 01:29:48]} {[%emt 00:01:24]}
O-O {[%clk 01:29:24]} {[%emt 00:00:04]} 6. Nc3 {[%clk 01:30:07]} {[%emt
00:00:11]} e5 {[%clk 01:26:45]} {[%emt 00:03:09]} 7. Rb1 {[%clk 01:29:01]}
{[%emt 00:01:37]} h6 {[%clk 01:19:24]} {[%emt 00:07:50]} 8. d3 {[%clk
01:24:34]} {[%emt 00:04:57]} a5 {[%clk 01:16:44]} {[%emt 00:03:10]} 9. a3
{[%clk 01:24:37]} {[%emt 00:00:29]} Be6 {[%clk 01:10:11]} {[%emt 00:07:02]} 10.
Qc2 {[%clk 01:20:01]} {[%emt 00:05:05]} Qd7 {[%clk 01:06:32]} {[%emt 00:04:08]}
11. Re1 {[%clk 01:13:37]} {[%emt 00:06:55]} a4 {[%clk 01:01:27]} {[%emt
00:05:35]} 12. b3 {[%clk 01:00:14]} {[%emt 00:13:54]} axb3 {[%clk 01:01:48]}
{[%emt 00:00:09]} 13. Rxb3 {[%clk 01:00:41]} {[%emt 00:00:03]} c6 {[%clk
00:53:07]} {[%emt 00:09:10]} 14. Qb1 {[%clk 00:48:52]} {[%emt 00:12:19]} b5
{[%clk 00:50:02]} {[%emt 00:03:35]} 15. Nd2 {[%clk 00:48:39]} {[%emt 00:00:43]}
bxc4 {[%clk 00:29:58]} {[%emt 00:20:34]} 16. Nxc4 {[%clk 00:45:17]} {[%emt
00:03:52]} Qe7 {[%clk 00:27:43]} {[%emt 00:02:45]} 17. Rb7 {[%clk 00:42:56]}
{[%emt 00:02:52]} Nfd7 {[%clk 00:27:37]} {[%emt 00:00:36]} 18. Qb4 {[%clk
00:35:56]} {[%emt 00:07:29]} Bxc4 {[%clk 00:25:38]} {[%emt 00:02:29]} 19. dxc4
{[%clk 00:36:07]} {[%emt 00:00:20]} Qe6 {[%clk 00:23:13]} {[%emt 00:02:54]} 20.
Ne4 {[%clk 00:34:16]} {[%emt 00:02:22]} f5 {[%clk 00:21:46]} {[%emt 00:01:56]}
21. Qxd6 {[%clk 00:24:37]} {[%emt 00:10:09]} Qxc4 {[%clk 00:19:25]} {[%emt
00:02:51]} 22. Nd2 {[%clk 00:24:02]} {[%emt 00:01:05]} Qa6 {[%clk 00:12:07]}
{[%emt 00:07:49]} 23. Rxd7 {[%clk 00:21:19]} {[%emt 00:03:13]} Nxd7 {[%clk
00:12:23]} {[%emt 00:00:13]} 24. Qxd7 {[%clk 00:21:35]} {[%emt 00:00:14]} e4
{[%clk 00:09:02]} {[%emt 00:03:51]} 25. Nf1 {[%clk 00:14:11]} {[%emt 00:07:53]}
Rfd8 {[%clk 00:06:49]} {[%emt 00:02:44]} 26. Qe6+ {[%clk 00:13:15]} {[%emt
00:01:26]} Kh7 {[%clk 00:07:06]} {[%emt 00:00:13]} 27. Qb3 {[%clk 00:03:59]}
{[%emt 00:09:47]} Qa4 {[%clk 00:03:12]} {[%emt 00:04:23]} 28. Qxa4 {[%clk
00:03:53]} {[%emt 00:00:37]} Rxa4 {[%clk 00:03:38]} {[%emt 00:00:04]} 29. Ne3
{[%clk 00:04:12]} {[%emt 00:00:10]} Bc3 {[%clk 00:02:50]} {[%emt 00:01:17]} 30.
Rf1 {[%clk 00:03:59]} {[%emt 00:00:43]} Rad4 {[%clk 00:01:33]} {[%emt
00:01:48]} 31. f3 {[%clk 00:03:54]} {[%emt 00:00:35]} Bd2 {[%clk 00:01:10]}
{[%emt 00:00:52]} 32. Bxd2 {[%clk 00:03:45]} {[%emt 00:00:39]} Rxd2 {[%clk
00:01:36]} {[%emt 00:00:04]} 33. Kf2 {[%clk 00:04:09]} {[%emt 00:00:06]} exf3
{[%clk 00:01:59]} {[%emt 00:00:07]} 34. Bxf3 {[%clk 00:04:32]} {[%emt
00:00:07]} Ra2 {[%emt 00:03:03]} 35. Nc4 {[%clk 00:03:21]} Rc2 {[%clk
00:01:19]} {[%emt 00:00:18]} 36. Ne5 {[%clk 00:03:17]} {[%emt 00:00:34]} c5
{[%clk 00:01:29]} {[%emt 00:00:20]} 37. Rb1 {[%clk 00:02:35]} {[%emt 00:01:12]}
Kg7 {[%clk 00:01:33]} {[%emt 00:00:26]} 38. Rb6 {[%clk 00:02:20]} {[%emt
00:00:45]} g5 {[%clk 00:01:11]} {[%emt 00:00:52]} 39. Rg6+ {[%clk 00:01:51]}
{[%emt 00:00:59]} Kh7 {[%clk 00:01:23]} {[%emt 00:00:18]} 40. Rc6 {[%clk
00:00:56]} {[%emt 00:01:26]} Re8 {[%clk 00:01:27]} {[%emt 00:00:25]} 41. Rc7+
{[%clk 00:00:51]} {[%emt 00:00:35]} Kg8 {[%clk 00:29:31]} {[%emt 00:02:26]} 42.
Bd5+ {[%clk 00:31:16]} {[%emt 00:00:05]} Kf8 {[%clk 00:29:53]} {[%emt
00:00:08]} 43. Ng6# {[%clk 00:31:44]} {[%emt 00:00:02]} 1-0

[Event "The Schackveckan 2023: IM-turnering"]
[Site "Goteborgs schackcentrum, Vegagatan 20, Gothenburg, Sweden"]
[Date "2023.08.09"]
[Round "7.1"]
[White "Olsson, William"]
[Black "Sorensen, Hampus"]
[Result "0-1"]
[TimeControl "90 minutes for 40 moves + 30 minutes for the rest of the game + 30 seconds per move from move one."]
[WhiteTitle "FM"]
[BlackTitle "IM"]
[WhiteFideId "1741721"]
[BlackFideId "8703884"]
[WhiteElo "2400"]
[BlackElo "2475"]

1. c4 {[%clk 01:30:58]} {[%emt 00:00:02]} e5 {[%clk 01:30:22]} {[%emt
00:00:38]} 2. g3 {[%clk 01:31:18]} {[%emt 00:00:10]} Nf6 {[%clk 01:30:41]}
{[%emt 00:00:12]} 3. Bg2 {[%clk 01:31:36]} {[%emt 00:00:12]} c6 {[%clk
01:30:59]} {[%emt 00:00:12]} 4. Nf3 {[%clk 01:31:27]} {[%emt 00:00:39]} e4
{[%clk 01:31:22]} {[%emt 00:00:06]} 5. Nd4 {[%clk 01:31:51]} {[%emt 00:00:07]}
d5 {[%clk 01:31:43]} {[%emt 00:00:09]} 6. cxd5 {[%clk 01:32:15]} {[%emt
00:00:06]} Qxd5 {[%clk 01:32:08]} {[%emt 00:00:04]} 7. Nc2 {[%clk 01:32:24]}
{[%emt 00:00:23]} Qh5 {[%clk 01:32:21]} {[%emt 00:00:15]} 8. h3 {[%clk
01:32:49]} {[%emt 00:00:07]} Qg6 {[%clk 01:32:21]} {[%emt 00:00:29]} 9. Nc3
{[%clk 01:29:55]} {[%emt 00:03:23]} Bd6 {[%clk 01:31:17]} {[%emt 00:01:35]} 10.
d3 {[%clk 01:19:20]} {[%emt 00:11:05]} exd3 {[%clk 01:28:38]} {[%emt 00:03:08]}
11. Qxd3 {[%clk 01:19:28]} {[%emt 00:00:22]} Qxd3 {[%clk 01:27:41]} {[%emt
00:01:27]} 12. exd3 {[%clk 01:19:55]} {[%emt 00:00:05]} O-O {[%clk 01:24:59]}
{[%emt 00:03:11]} 13. d4 {[%clk 01:17:02]} {[%emt 00:03:23]} Be6 {[%clk
01:21:28]} {[%emt 00:04:01]} 14. Bg5 {[%clk 01:14:40]} {[%emt 00:02:52]} Nbd7
{[%clk 01:18:32]} {[%emt 00:03:25]} 15. O-O {[%clk 01:12:44]} {[%emt 00:02:26]}
h6 {[%clk 01:14:28]} {[%emt 00:04:34]} 16. Bxf6 {[%clk 01:12:06]} {[%emt
00:01:08]} Nxf6 {[%clk 01:14:47]} {[%emt 00:00:12]} 17. Ne3 {[%clk 01:12:32]}
{[%emt 00:00:04]} Rfd8 {[%clk 01:11:16]} {[%emt 00:04:02]} 18. Rfd1 {[%clk
01:11:13]} {[%emt 00:01:43]} Rd7 {[%clk 01:06:22]} {[%emt 00:05:29]} 19. d5
{[%clk 01:08:50]} {[%emt 00:02:54]} cxd5 {[%clk 01:06:36]} {[%emt 00:00:15]} 20.
Nexd5 {[%clk 01:09:09]} {[%emt 00:00:11]} Nxd5 {[%clk 01:04:20]} {[%emt
00:02:45]} 21. Nxd5 {[%clk 01:08:34]} {[%emt 00:01:06]} Rad8 {[%clk 00:52:50]}
{[%emt 00:12:00]} 22. Nc3 {[%clk 00:55:57]} {[%emt 00:13:06]} Be5 {[%clk
00:48:10]} {[%emt 00:05:10]} 23. Re1 {[%clk 00:52:25]} {[%emt 00:04:03]} Bf6
{[%clk 00:46:29]} {[%emt 00:02:11]} 24. Rac1 {[%clk 00:47:01]} {[%emt
00:05:46]} Rd2 {[%clk 00:37:49]} {[%emt 00:09:19]} 25. Ne4 {[%clk 00:39:18]}
{[%emt 00:08:13]} Rxb2 {[%clk 00:37:50]} {[%emt 00:00:28]} 26. Nxf6+ {[%clk
00:39:34]} {[%emt 00:00:14]} gxf6 {[%clk 00:38:18]} {[%emt 00:00:02]} 0-1

[Event "The Schackveckan 2023: IM-turnering"]
[Site "Goteborgs schackcentrum, Vegagatan 20, Gothenburg, Sweden"]
[Date "2023.08.09"]
[Round "7.2"]
[White "Ustianovich, Nazar"]
[Black "Berggren Torell, Harald"]
[Result "1-0"]
[TimeControl "90 minutes for 40 moves + 30 minutes for the rest of the game + 30 seconds per move from move one."]
[WhiteTitle "FM"]
[WhiteFideId "14109778"]
[BlackFideId "1714031"]
[WhiteElo "2314"]
[BlackElo "2061"]

1. d4 {[%clk 01:29:32]} {[%emt 00:01:28]} d6 {[%clk 01:25:20]} {[%emt
00:05:41]} 2. e4 {[%clk 01:28:48]} {[%emt 00:01:14]} Nf6 {[%clk 01:24:57]}
{[%emt 00:00:53]} 3. Nc3 {[%clk 01:29:02]} {[%emt 00:00:16]} g6 {[%clk
01:23:59]} {[%emt 00:01:29]} 4. f4 {[%clk 01:16:48]} {[%emt 00:12:43]} Bg7
{[%clk 01:24:15]} {[%emt 00:00:14]} 5. Nf3 {[%clk 01:17:14]} {[%emt 00:00:04]}
c5 {[%clk 01:24:10]} {[%emt 00:00:35]} 6. dxc5 {[%clk 01:03:01]} {[%emt
00:14:43]} Qa5 {[%clk 01:24:25]} {[%emt 00:00:15]} 7. Bd3 {[%clk 01:03:30]}
{[%emt 00:00:01]} Qxc5 {[%clk 01:24:40]} {[%emt 00:00:15]} 8. Qe2 {[%clk
01:03:51]} {[%emt 00:00:09]} Nc6 {[%clk 01:21:58]} {[%emt 00:03:12]} 9. Be3
{[%clk 00:59:19]} {[%emt 00:05:02]} Qb4 {[%clk 01:20:00]} {[%emt 00:02:28]} 10.
O-O {[%clk 00:57:44]} {[%emt 00:02:04]} Qxb2 {[%clk 01:17:20]} {[%emt
00:03:11]} 11. Nb5 {[%clk 00:55:13]} {[%emt 00:03:01]} Ng4 {[%clk 01:16:38]}
{[%emt 00:01:11]} 12. Nc7+ {[%clk 00:44:43]} {[%emt 00:11:01]} Kd8 {[%clk
01:16:38]} {[%emt 00:00:29]} 13. Nxa8 {[%clk 00:45:09]} {[%emt 00:00:05]} Nxe3
{[%clk 01:13:33]} {[%emt 00:03:35]} 14. Qxe3 {[%clk 00:45:38]} {[%emt
00:00:01]} Qxa1 {[%clk 01:08:36]} {[%emt 00:05:27]} 15. Rxa1 {[%clk 00:45:08]}
{[%emt 00:00:59]} Bxa1 {[%clk 01:09:03]} {[%emt 00:00:03]} 16. Bb5 {[%clk
00:42:24]} {[%emt 00:03:14]} 1-0